fUST/lending_fUST_20241207
["ID","MTS","AMOUNT","RATE_DAILY","PERIOD"]
[344568940,1733554241493,-568.84882602,0.00026429,2]
[344568941,1733554241502,-338.0,0.000265,12]
[344568942,1733554241511,-500.0,0.00026575,2]
[344568943,1733554241520,-500.0,0.00026575,2]
[344568944,1733554241529,-500.0,0.00026575,2]
[344568945,1733554241538,-724.19,0.00026575,2]
[344568946,1733554241547,-500.0,0.00026575,2]
[344568947,1733554241557,-427.36572789,0.00026639,2]
[344568948,1733554241567,-414.98938146,0.00026692,2]
[344568949,1733554241576,-500.0,0.00026849,2]
[344568950,1733554241585,-456.12216902,0.00026849,2]
[344568951,1733554241595,-151.0,0.00026849,7]
[344568952,1733554241604,-500.0,0.00026849,2]
[344568953,1733554241614,-428.256001,0.00026849,7]
[344568954,1733554241626,-428.256001,0.00026849,7]
[344568955,1733554241635,-151.0,0.00026849,7]
[344568956,1733554241644,-253.42501,0.00026849,7]
[344568957,1733554241653,-151.0,0.00026849,7]
[344568958,1733554241662,-151.0,0.00026849,7]
[344568959,1733554241671,-724.19,0.00026849,2]
[344568960,1733554241680,-155.737968,0.00026849,7]
[344568961,1733554241689,-500.0,0.00026849,2]
[344568962,1733554241698,-151.0,0.00026849,7]
[344568963,1733554241707,-151.0,0.00026849,7]
[344568964,1733554241716,-156.068282,0.00026849,7]
[344568965,1733554241725,-156.068282,0.00026849,7]
[344568966,1733554241735,-1069.42413428,0.00026886,2]
[344568967,1733554241744,-469.6,0.000271,2]
[344568968,1733554241753,-151.0,0.00027119,7]
[344568969,1733554241762,-158.515964,0.00027119,7]
[344568970,1733554241771,-151.0,0.00027119,7]
[344568971,1733554241780,-152.151534,0.00027119,7]
[344568972,1733554241789,-160.157581,0.00027119,7]
[344568973,1733554241799,-160.157581,0.00027119,7]
[344568974,1733554241809,-390.055482,0.00027119,7]
[344568975,1733554241822,-390.055482,0.00027119,7]
[344568976,1733554241832,-178.557418,0.00027119,7]
[344568977,1733554241841,-178.557418,0.00027119,7]
[344568978,1733554241851,-269.08976594,0.00027123,2]
[344568979,1733554241861,-500.0,0.00027123,2]
[344568980,1733554241871,-724.19,0.00027123,2]
[344568981,1733554241880,-457.42773009,0.00027123,2]
[344568982,1733554241891,-309.919699,0.00027275,2]
[344568983,1733554241900,-500.0,0.00027397,3]
[344568984,1733554241910,-500.0,0.00027397,2]
[344568985,1733554241919,-500.0,0.00027397,2]
[344568986,1733554241928,-500.0,0.00027397,2]
[344568987,1733554241937,-330.8798662,0.00027397,2]
[344568988,1733554241947,-217.03080871,0.00027397,2]
[344568989,1733554241956,-724.19,0.00027397,2]
[344568990,1733554241966,-557.44213585,0.00027409,2]
[344568991,1733554241976,-227.061,0.0002755,2]
[344568992,1733554241985,-724.19,0.00027671,2]
[344568993,1733554241996,-427.36572789,0.00027923,2]
[344568994,1733554242005,-724.19,0.00027945,2]
[344568995,1733554242014,-338.0,0.00028,13]
[344568996,1733554242023,-156.785348,0.0002804,7]
[344568997,1733554242032,-577.577022,0.0002804,7]
[344568998,1733554242041,-577.577022,0.0002804,7]
[344568999,1733554242050,-765.573717,0.0002804,7]
[344569000,1733554242059,-765.573717,0.0002804,7]
[344569001,1733554242068,-151.0,0.0002804,7]
[344569002,1733554242077,-3200.0,0.0002804,2]
[344569003,1733554242086,-151.15,0.0002804,2]
[344569004,1733554242095,-724.19,0.00028219,2]
[344569005,1733554242104,-309.919699,0.00028248,2]
[344569006,1733554242114,-724.19,0.00028493,2]
[344569007,1733554242123,-500.0,0.00028767,5]
[344569008,1733554242132,-724.19,0.00028767,2]
[344569009,1733554242141,-3913.29509405,0.00029,2]
[344569010,1733554242158,-7743.64442111,0.00029,2]
[344569011,1733554242167,-410.81670547,0.00029,2]
[344569012,1733554242177,-151.0,0.00029,7]
[344569013,1733554242186,-151.0,0.00029,7]
[344569014,1733554242195,-288.577459,0.00029,7]
[344569015,1733554242205,-151.0,0.00029,7]
[344569016,1733554242214,-151.0,0.00029,7]
[344569017,1733554242224,-151.0,0.00029,7]
[344569018,1733554242233,-151.0,0.00029,7]
[344569019,1733554242243,-151.0,0.00029,7]
[344569020,1733554242253,-287.341604,0.00029,7]
[344569021,1733554242262,-149.92809581,0.00029,7]
[344569156,1733554245113,-137.41350819,0.00029,7]
[344569158,1733554245129,-151.0,0.00029,7]
[344569160,1733554245139,-7.72849181,0.00029,7]
[344569174,1733554245269,-270.56869819,0.00029,7]
[344569176,1733554245279,-328.265032,0.00029,7]
[344569179,1733554245289,-328.265032,0.00029,7]
[344569181,1733554245299,-151.273311,0.00029,7]
[344569183,1733554245308,-151.0,0.00029,7]
[344569185,1733554245318,-151.0,0.00029,7]
[344569187,1733554245327,-167.372698,0.00029,7]
[344569189,1733554245337,-167.372698,0.00029,7]
[344569191,1733554245347,-557.44213585,0.00029,2]
[344569193,1733554245356,-724.19,0.00029041,2]
[344569195,1733554245366,-151.0,0.00029075,6]
[344569197,1733554245377,-208.60353707,0.00029099,2]
[344569199,1733554245386,-206.68694798,0.00029099,2]
[344569201,1733554245395,-208.46713486,0.00029099,2]
[344569203,1733554245406,-69802.82457129,0.000291,2]
[344569205,1733554245416,-151.0,0.000291,7]
[344569207,1733554245425,-154.460355,0.000291,7]
[344569209,1733554245435,-151.0,0.000291,7]
[344569211,1733554245444,-151.0,0.000291,7]
[344569213,1733554245453,-151.0,0.000291,7]
[344569215,1733554245463,-151.0,0.000291,7]
[344569217,1733554245473,-151.0,0.000291,7]
[344569219,1733554245483,-151.0,0.000291,7]
[344569221,1733554245493,-287.341604,0.000291,7]
[344569223,1733554245502,-287.341604,0.000291,7]
[344569225,1733554245511,-151.0,0.000291,7]
[344569227,1733554245521,-328.265032,0.000291,7]
[344569229,1733554245530,-328.265032,0.000291,7]
[344569231,1733554245539,-151.0,0.000291,7]
[344569233,1733554245548,-223.882698,0.000291,7]
[344569235,1733554245558,-577.577022,0.000291,7]
[344569236,1733554245568,-167.372698,0.000291,7]
[344569238,1733554245577,-577.577022,0.000291,7]
[344569240,1733554245586,-167.372698,0.000291,7]
[344569242,1733554245597,-765.573717,0.000291,7]
[344569244,1733554245606,-765.573717,0.000291,7]
[344569246,1733554245616,-248.053769,0.000291,7]
[344569248,1733554245625,-151.0,0.000291,7]
[344569249,1733554245635,-151.0,0.000291,7]
[344569250,1733554245644,-160.157581,0.000291,7]
[344569251,1733554245653,-160.157581,0.000291,7]
[344569252,1733554245663,-151.0,0.000291,7]
[344569253,1733554245672,-390.055482,0.000291,7]
[344569254,1733554245682,-390.055482,0.000291,7]
[344569255,1733554245691,-178.557418,0.000291,7]
[344569256,1733554245700,-428.256001,0.000291,7]
[344569257,1733554245710,-178.557418,0.000291,7]
[344569258,1733554245719,-428.256001,0.000291,7]
[344569259,1733554245729,-151.0,0.000291,7]
[344569260,1733554245739,-151.0,0.000291,7]
[344569261,1733554245748,-151.0,0.000291,7]
[344569262,1733554245757,-151.0,0.000291,7]
[344569263,1733554245767,-271.919539,0.000291,7]
[344569264,1733554245776,-156.068282,0.000291,7]
[344569265,1733554245785,-156.068282,0.000291,7]
[344569266,1733554245795,-427.36572789,0.00029207,2]
[344569267,1733554245804,-309.919699,0.00029221,2]
[344569268,1733554245815,-724.19,0.00029315,2]
[344569269,1733554245826,-162.881162,0.00029349,2]
[344569270,1733554245835,-338.0,0.000295,14]
[344569271,1733554245844,-724.19,0.00029589,2]
[344569272,1733554245854,-151.0,0.00029621,7]
[344569273,1733554245864,-157.490776,0.000297,15]
[344569274,1733554245874,-8570.51982549,0.0002975,2]
[344569275,1733554245884,-724.19,0.00029863,2]
[344569276,1733554245893,-267.77549376,0.00029973,5]
[344569277,1733554245903,-8664.04217382,0.00029999,18]
[344569278,1733554245912,-1836.0,0.0003,2]
[344569279,1733554245922,-2405.33731079,0.0003,120]
[344570164,1733554868831,163.079278,0.00013973,2]
[344570165,1733555210149,-163.079278,0.00022174,2]
[344570166,1733555210170,-169.874075,0.00023605,2]
[344570167,1733555210191,-300.0,0.00024014,2]
[344570168,1733555210213,-497.07633788,0.00024015,2]
[344570192,1733555431970,-843.69249641,0.00024015,2]
[344570194,1733555431981,-18209.43041857,0.00024015,2]
[344570199,1733555432027,-5349.80074714,0.00024015,2]
[344570200,1733555432037,-211.56272,0.00024016,2]
[344570201,1733555432046,-213.68286395,0.00024557,2]
[344570202,1733555432055,-500.0,0.00024657,2]
[344570203,1733555432065,-500.0,0.00024657,2]
[344570204,1733555432075,-500.0,0.00024657,2]
[344570205,1733555432084,-500.0,0.00024657,2]
[344570207,1733555432094,-500.0,0.00024657,2]
[344570209,1733555432103,-500.0,0.00024657,2]
[344570211,1733555432112,-576.00514195,0.00024657,2]
[344570213,1733555432122,-500.0,0.00024657,2]
[344570215,1733555432131,-566.07952156,0.00024657,2]
[344570217,1733555432145,-500.0,0.00024657,2]
[344570219,1733555432155,-500.0,0.00024657,2]
[344570221,1733555432168,-500.0,0.00024657,2]
[344570223,1733555432177,-500.0,0.00024657,2]
[344570224,1733555432188,-258.82409787,0.00024657,2]
[344570225,1733555432197,-500.0,0.00024657,2]
[344570226,1733555432207,-500.0,0.00024657,2]
[344570227,1733555432217,-245.49041794,0.00024657,2]
[344570228,1733555432226,-500.0,0.00024657,2]
[344570229,1733555432235,-507.9983857,0.00024657,2]
[344570230,1733555432245,-500.0,0.00024657,2]
[344570231,1733555432254,-500.0,0.00024657,2]
[344570232,1733555432263,-500.0,0.00024657,2]
[344570233,1733555432273,-500.0,0.00024657,2]
[344570234,1733555432282,-500.0,0.00024657,2]
[344570235,1733555432292,-500.0,0.00024657,2]
[344570236,1733555432301,-500.0,0.00024657,2]
[344570237,1733555432311,-500.0,0.00024657,2]
[344570238,1733555432320,-500.0,0.00024657,2]
[344570239,1733555432330,-500.0,0.00024657,2]
[344570240,1733555432339,-500.0,0.00024657,2]
[344570241,1733555432349,-500.0,0.00024657,2]
[344570242,1733555432359,-500.0,0.00024657,2]
[344570243,1733555432368,-500.0,0.00024657,2]
[344570244,1733555432377,-506.16399016,0.00024657,2]
[344570245,1733555432386,-500.0,0.00024657,2]
[344570246,1733555432395,-500.0,0.00024657,2]
[344570247,1733555432405,-500.0,0.00024657,2]
[344570248,1733555432414,-500.0,0.00024657,2]
[344570249,1733555432424,-500.0,0.00024657,2]
[344570250,1733555432433,-500.0,0.00024657,2]
[344570251,1733555432443,-500.0,0.00024657,2]
[344570252,1733555432453,-348.65506486,0.00024657,2]
[344570253,1733555432462,-500.0,0.00024657,2]
[344570254,1733555432472,-509.76565893,0.00024657,2]
[344570255,1733555432481,-500.0,0.00024657,2]
[344570256,1733555432501,-500.0,0.00024657,2]
[344570257,1733555432511,-327.27015308,0.00024657,2]
[344570258,1733555432521,-505.51022391,0.00024657,2]
[344570259,1733555432531,-500.0,0.00024657,2]
[344570260,1733555432541,-500.0,0.00024657,2]
[344570261,1733555432551,-500.0,0.00024657,2]
[344570262,1733555432561,-500.0,0.00024657,2]
[344570263,1733555432570,-500.0,0.00024657,2]
[344570264,1733555432580,-500.0,0.00024657,2]
[344570265,1733555432590,-500.0,0.00024657,2]
[344570266,1733555432600,-500.0,0.00024657,2]
[344570267,1733555432609,-500.0,0.00024657,2]
[344570268,1733555432619,-500.0,0.00024657,2]
[344570269,1733555432630,-500.0,0.00024657,2]
[344570270,1733555432644,-500.0,0.00024657,2]
[344570271,1733555432655,-500.0,0.00024657,2]
[344570272,1733555432664,-592.79,0.00024657,2]
[344570273,1733555432675,-500.0,0.00024657,2]
[344570274,1733555432685,-568.44,0.00024657,2]
[344570275,1733555432695,-500.0,0.00024657,2]
[344570276,1733555432705,-571.49,0.00024657,2]
[344570277,1733555432715,-500.0,0.00024657,2]
[344570278,1733555432724,-500.0,0.00024657,2]
[344570279,1733555432734,-500.0,0.00024657,2]
[344570280,1733555432743,-500.0,0.00024657,2]
[344570281,1733555432752,-500.0,0.00024657,2]
[344570282,1733555432762,-500.0,0.00024657,2]
[344570283,1733555432771,-500.0,0.00024657,2]
[344570284,1733555432782,-500.0,0.00024657,2]
[344570285,1733555432791,-500.0,0.00024657,2]
[344570286,1733555432801,-500.0,0.00024657,2]
[344570287,1733555432811,-632.74,0.00024657,2]
[344570288,1733555432820,-529.08,0.00024657,2]
[344570289,1733555432830,-500.0,0.00024657,2]
[344570290,1733555432839,-500.0,0.00024657,2]
[344570291,1733555432849,-500.0,0.00024657,2]
[344570292,1733555432859,-500.0,0.00024657,2]
[344570293,1733555432868,-961.78,0.00024657,2]
[344570294,1733555432878,-500.0,0.00024657,2]
[344570295,1733555432887,-825.29,0.00024657,2]
[344570296,1733555432896,-500.0,0.00024657,2]
[344570297,1733555432905,-500.0,0.00024657,2]
[344570298,1733555432915,-500.0,0.00024657,2]
[344570299,1733555432924,-500.0,0.00024657,2]
[344570300,1733555432933,-500.0,0.00024931,2]
[344570301,1733555432942,-500.0,0.00024931,2]
[344570302,1733555432951,-500.0,0.00024931,2]
[344570303,1733555432960,-500.0,0.00024931,2]
[344570304,1733555432969,-500.0,0.00024931,2]
[344570305,1733555432978,-500.0,0.00024931,2]
[344570306,1733555432988,-500.0,0.00024931,2]
[344570307,1733555432998,-211.10127905,0.00024931,2]
[344570308,1733555433007,-500.0,0.00024931,2]
[344570309,1733555433017,-500.0,0.00024931,2]
[344570310,1733555433026,-506.19039708,0.00024931,2]
[344570311,1733555433036,-593.14268501,0.00024931,2]
[344570312,1733555433046,-500.0,0.00024931,2]
[344570313,1733555433056,-500.0,0.00024931,2]
[344570314,1733555433066,-500.0,0.00024931,2]
[344570315,1733555433076,-534.66336155,0.00024931,2]
[344570316,1733555433086,-500.0,0.00024931,2]
[344570317,1733555433096,-520.85983781,0.00024931,2]
[344570318,1733555433106,-500.0,0.00024931,2]
[344570319,1733555433115,-500.0,0.00024931,2]
[344570320,1733555433124,-500.0,0.00024931,2]
[344570321,1733555433133,-500.0,0.00024931,2]
[344570322,1733555433144,-500.0,0.00024931,2]
[344570323,1733555433154,-500.0,0.00024931,2]
[344570324,1733555433167,-500.0,0.00024931,2]
[344570325,1733555433176,-500.0,0.00024931,2]
[344570326,1733555433188,-506.14731021,0.00024931,2]
[344570327,1733555433202,-500.0,0.00024931,2]
[344570328,1733555433213,-500.0,0.00024931,2]
[344570329,1733555433223,-500.0,0.00024931,2]
[344570330,1733555433234,-500.0,0.00024931,2]
[344570331,1733555433245,-281.14215976,0.00024931,2]
[344570332,1733555433255,-500.0,0.00024931,2]
[344570333,1733555433266,-151.0,0.00024931,7]
[344570334,1733555433276,-549.39004972,0.00024931,2]
[344570335,1733555433286,-500.0,0.00024931,2]
[344570336,1733555433295,-507.34399284,0.00024931,2]
[344570337,1733555433306,-500.0,0.00024931,2]
[344570338,1733555433316,-640.36,0.00024931,2]
[344570339,1733555433325,-612.458974,0.00024931,7]
[344570340,1733555433337,-612.458974,0.00024931,7]
[344570341,1733555433348,-506.05997271,0.00024931,2]
[344570342,1733555433358,-524.03587914,0.00024931,2]
[344570343,1733555433368,-500.0,0.00024931,2]
[344570344,1733555433519,-552.29796266,0.00024931,2]
[344570345,1733555433530,-500.0,0.00024931,2]
[344570346,1733555433541,-500.0,0.00024931,2]
[344570347,1733555433552,-500.0,0.00024931,2]
[344570348,1733555433562,-462.061618,0.00024931,7]
[344570349,1733555433574,-151.0,0.00024931,7]
[344570350,1733555433587,-462.061618,0.00024931,7]
[344570351,1733555433598,-151.0,0.00024931,7]
[344570352,1733555433609,-151.0,0.00024931,7]
[344570353,1733555433619,-151.0,0.00024931,7]
[344570354,1733555433629,-500.0,0.00024931,2]
[344570355,1733555433639,-500.0,0.00024931,2]
[344570356,1733555433648,-152.9,0.00024931,2]
[344570357,1733555433658,-190.41918634,0.00024931,2]
[344570358,1733555433667,-500.0,0.00024931,2]
[344570359,1733555433676,-500.0,0.00024931,2]
[344570360,1733555433689,-151.0,0.00024931,7]
[344570361,1733555433698,-500.0,0.00024931,2]
[344570362,1733555433709,-151.0,0.00024931,7]
[344570363,1733555433718,-500.0,0.00024931,2]
[344570364,1733555433728,-500.0,0.00024931,2]
[344570365,1733555433738,-500.0,0.00024931,2]
[344570366,1733555433748,-151.583623,0.00024931,7]
[344570367,1733555433757,-312.044385,0.00024931,7]
[344570368,1733555433767,-312.044385,0.00024931,7]
[344570369,1733555433776,-643.72,0.00024931,2]
[344570370,1733555433785,-500.0,0.00024931,2]
[344570371,1733555433795,-151.0,0.00024931,7]
[344570372,1733555433805,-151.0,0.00024931,7]
[344570373,1733555433814,-500.0,0.00024931,2]
[344570374,1733555433824,-500.0,0.00024931,2]
[344570375,1733555433834,-961.78,0.00024931,2]
[344570376,1733555433843,-262.612026,0.00024931,7]
[344570377,1733555433853,-500.0,0.00024931,2]
[344570378,1733555433862,-262.612026,0.00024931,7]
[344570379,1733555433872,-825.29,0.00024931,2]
[344570380,1733555433882,-500.0,0.00024931,2]
[344570381,1733555433891,-500.0,0.00024931,2]
[344570382,1733555433901,-151.0,0.00024931,7]
[344570383,1733555433910,-500.0,0.00024931,2]
[344570384,1733555433919,-151.0,0.00024931,7]
[344570385,1733555433928,-500.0,0.00024931,2]
[344570386,1733555433939,-151.0,0.00024931,7]
[344570387,1733555433948,-151.0,0.00025204,7]
[344570388,1733555433957,-151.0,0.00025204,7]
[344570389,1733555433967,-500.0,0.00025205,2]
[344570390,1733555433977,-604.67,0.00025205,2]
[344570391,1733555433989,-500.0,0.00025205,2]
[344570392,1733555433998,-500.0,0.00025205,2]
[344570393,1733555434008,-500.0,0.00025205,2]
[344570394,1733555434017,-229.873283,0.00025205,7]
[344570395,1733555434026,-500.0,0.00025205,2]
[344570396,1733555434035,-229.873283,0.00025205,7]
[344570397,1733555434044,-151.0,0.00025205,7]
[344570398,1733555434053,-151.0,0.00025205,7]
[344570399,1733555434063,-537.58435901,0.00025205,2]
[344570400,1733555434071,-500.0,0.00025205,2]
[344570401,1733555434080,-511.11728208,0.00025205,2]
[344570402,1733555434090,-151.0,0.00025205,7]
[344570403,1733555434099,-151.0,0.00025205,7]
[344570404,1733555434108,-151.0,0.00025205,7]
[344570405,1733555434117,-510.53051469,0.00025205,2]
[344570406,1733555434126,-477.03783125,0.00025205,2]
[344570407,1733555434135,-153.791479,0.00025205,7]
[344570408,1733555434144,-180.59815093,0.00025205,2]
[344570409,1733555434153,-500.0,0.00025205,2]
[344570410,1733555434163,-500.0,0.00025205,2]
[344570411,1733555434175,-151.0,0.00025205,7]
[344570412,1733555434185,-500.0,0.00025205,2]
[344570413,1733555434194,-151.0,0.00025205,7]
[344570414,1733555434203,-500.0,0.00025205,2]
[344570415,1733555434213,-204.603914,0.00025205,7]
[344570416,1733555434223,-500.0,0.00025205,2]
[344570417,1733555434232,-593.78,0.00025205,2]
[344570418,1733555434242,-214.26233196,0.00025205,2]
[344570419,1733555434251,-318.87382387,0.00025205,2]
[344570420,1733555434260,-500.0,0.00025205,2]
[344570421,1733555434270,-151.0,0.00025205,7]
[344570422,1733555434279,-500.0,0.00025205,2]
[344570423,1733555434289,-332.52,0.00025205,2]
[344570424,1733555434299,-612.458974,0.00025205,7]
[344570425,1733555434309,-612.458974,0.00025205,7]
[344570426,1733555434318,-544.1,0.00025205,2]
[344570427,1733555434327,-500.0,0.00025205,2]
[344570428,1733555434336,-462.061618,0.00025205,7]
[344570429,1733555434345,-151.0,0.00025205,7]
[344570430,1733555434356,-462.061618,0.00025205,7]
[344570431,1733555434365,-151.0,0.00025205,7]
[344570432,1733555434374,-151.0,0.00025205,7]
[344570433,1733555434383,-166.962205,0.00025205,7]
[344570434,1733555434393,-185.0,0.00025205,2]
[344570435,1733555434403,-500.0,0.00025205,2]
[344570436,1733555434413,-151.0,0.00025205,7]
[344570437,1733555434422,-222.62,0.00025205,2]
[344570438,1733555434431,-151.0,0.00025205,7]
[344570439,1733555434442,-500.0,0.00025205,2]
[344570440,1733555434452,-500.0,0.00025205,2]
[344570441,1733555434461,-312.044385,0.00025205,7]
[344570442,1733555434470,-312.044385,0.00025205,7]
[344570443,1733555434480,-202.84,0.00025205,2]
[344570444,1733555434490,-151.0,0.00025205,7]
[344570445,1733555434499,-151.0,0.00025205,7]
[344570446,1733555434509,-505.83824142,0.00025205,2]
[344570447,1733555434519,-320.33043747,0.00025205,2]
[344570448,1733555434529,-961.78,0.00025205,2]
[344570449,1733555434538,-262.612026,0.00025205,7]
[344570450,1733555434548,-500.0,0.00025205,2]
[344570451,1733555434558,-262.612026,0.00025205,7]
[344570452,1733555434568,-825.29,0.00025205,2]
[344570453,1733555434577,-641.92795063,0.00025205,2]
[344570454,1733555434588,-500.0,0.00025205,2]
[344570455,1733555434598,-151.0,0.00025205,7]
[344570456,1733555434608,-500.0,0.00025205,2]
[344570457,1733555434618,-151.0,0.00025205,7]
[344570458,1733555434627,-151.0,0.00025205,7]
[344570459,1733555434637,-500.0,0.00025416,2]
[344570460,1733555434647,-151.0,0.00025478,7]
[344570461,1733555434656,-151.0,0.00025478,7]
[344570462,1733555434666,-500.0,0.00025479,2]
[344570463,1733555434675,-598.77,0.00025479,2]
[344570464,1733555434685,-509.47850926,0.00025479,2]
[344570465,1733555434695,-492.5,0.00025479,2]
[344570466,1733555434704,-621.24,0.00025479,2]
[344570467,1733555434713,-280.58,0.00025479,2]
[344570468,1733555434722,-500.0,0.00025479,2]
[344570469,1733555434731,-500.0,0.00025479,2]
[344570470,1733555434740,-961.78,0.00025479,2]
[344570471,1733555434750,-825.29,0.00025479,2]
[344570472,1733555434759,-500.0,0.00025479,2]
[344570473,1733555434768,-500.0,0.00025479,2]
[344570474,1733555434778,-596.68,0.00025753,2]
[344570475,1733555434787,-151.0,0.00025753,7]
[344570476,1733555434796,-151.0,0.00025753,7]
[344570477,1733555434807,-500.0,0.00025753,2]
[344570478,1733555434816,-500.0,0.00025753,2]
[344570479,1733555434826,-961.78,0.00025753,2]
[344570480,1733555434835,-825.29,0.00025753,2]
[344570481,1733555434844,-500.0,0.00025753,2]
[344570482,1733555434853,-500.0,0.00025753,2]
[344570483,1733555434863,-500.0,0.00026027,2]
[344570484,1733555434873,-500.0,0.00026027,2]
[344570485,1733555434882,-961.78,0.00026027,2]
[344570486,1733555434891,-825.29,0.00026027,2]
[344570487,1733555434900,-575.26,0.00026027,2]
[344570488,1733555434909,-500.0,0.00026027,2]
[344570489,1733555434919,-151.0,0.000263,7]
[344570490,1733555434927,-151.0,0.000263,7]
[344570491,1733555434938,-151.0,0.000263,7]
[344570492,1733555434948,-156.367134,0.000263,7]
[344570493,1733555434957,-151.0,0.00026301,7]
[344570494,1733555434966,-612.458974,0.00026301,7]
[344570495,1733555434976,-612.458974,0.00026301,7]
[344570496,1733555434985,-151.0,0.00026301,7]
[344570497,1733555434995,-151.0,0.00026301,7]
[344570498,1733555435005,-151.0,0.00026301,7]
[344570499,1733555435016,-151.0,0.00026301,7]
[344570500,1733555435026,-500.0,0.00026301,2]
[344570501,1733555435035,-500.0,0.00026301,2]
[344570502,1733555435046,-312.044385,0.00026301,7]
[344570503,1733555435056,-312.044385,0.00026301,7]
[344570504,1733555435065,-151.0,0.00026301,7]
[344570505,1733555435075,-961.78,0.00026301,2]
[344570506,1733555435084,-262.612026,0.00026301,7]
[344570507,1733555435093,-262.612026,0.00026301,7]
[344570508,1733555435103,-825.29,0.00026301,2]
[344570509,1733555435112,-151.0,0.00026301,7]
[344570510,1733555435121,-500.0,0.00026301,2]
[344570511,1733555435131,-151.0,0.00026301,7]
[344570512,1733555435140,-151.0,0.00026301,7]
[344570513,1733555435149,-309.919699,0.00026301,2]
[344570514,1733555435160,-300.0,0.000265,12]
[344570515,1733555435173,-462.061618,0.00026574,7]
[344570516,1733555435183,-151.0,0.00026574,7]
[344570517,1733555435192,-462.061618,0.00026574,7]
[344570518,1733555435203,-151.0,0.00026575,7]
[344570519,1733555435212,-151.0,0.00026575,7]
[344570520,1733555435222,-500.0,0.00026575,2]
[344570521,1733555435231,-500.0,0.00026575,2]
[344570522,1733555435241,-961.78,0.00026575,2]
[344570523,1733555435252,-825.29,0.00026575,2]
[344570524,1733555435261,-466.54,0.00026575,2]
[344570525,1733555435270,-229.873283,0.00026848,7]
[344570526,1733555435281,-229.873283,0.00026848,7]
[344570527,1733555435290,-151.0,0.00026848,7]
[344570528,1733555435299,-151.0,0.00026848,7]
[344570529,1733555435308,-420.1,0.00026849,2]
[344570530,1733555435318,-500.0,0.00026849,2]
[344570531,1733555435329,-961.78,0.00026849,2]
[344570532,1733555435339,-825.29,0.00026849,2]
[344570533,1733555435348,-422.64,0.000271,2]
[344570534,1733555435359,-151.0,0.000271,7]
[344570535,1733555435368,-151.0,0.000271,7]
[344570536,1733555435378,-151.0,0.000271,7]
[344570537,1733555435388,-151.0,0.000271,7]
[344570538,1733555435397,-312.044385,0.000271,7]
[344570539,1733555435406,-312.044385,0.000271,7]
[344570540,1733555435417,-151.0,0.000271,7]
[344570541,1733555435427,-262.612026,0.000271,7]
[344570542,1733555435439,-262.612026,0.000271,7]
[344570543,1733555435448,-151.0,0.000271,7]
[344570544,1733555435457,-151.0,0.000271,7]
[344570545,1733555435467,-151.0,0.00027123,7]
[344570546,1733555435476,-500.0,0.00027123,2]